bitfinex-derivatives/quotes_SOLF0:USTF0_20250803
["timestamp","ask_amount","ask_price","bid_price","bid_amount"]
[1754233873128,3.44,161.0,160.99,6.29559192]
[1754233873425,9.73559192,161.09,161.0,0.87]
[1754233873623,3.33,161.08,161.01,115.12]
[1754233873823,6.209,161.06,161.01,115.12]
[1754233874021,3.33,161.11,161.02,0.86]
[1754233874236,3.33,161.11,161.06,0.86]
[1754233874528,532.62,161.18,161.08,0.86]
[1754233874724,3.33,161.1,161.08,0.86]
[1754233874924,3.33,161.13,161.09,13.36309192]
[1754233875120,3.33,161.12,161.1,0.86]
[1754233875430,3.33,161.14,161.11,7.15559192]
[1754233875728,3.33,161.13,161.11,7.15559192]
[1754233876228,3.33,161.12,161.08,0.86]
[1754233876417,3.33,161.12,161.09,115.14]
[1754233877727,6.2074,161.1,161.06,115.26]
[1754233877916,3.33,161.09,161.06,115.26]
[1754233878115,3.33,161.07,161.06,115.26]
[1754233878319,3.33,161.12,161.04,115.28]
[1754233878919,6.2081,161.09,161.04,115.28]
[1754233879125,3.33,161.08,161.04,116.14]
[1754233880324,9.5382,161.08,161.04,116.14]
[1754233880629,3.33,161.07,161.04,116.14]
[1754233880830,3.33,161.06,161.04,116.14]
[1754233881222,3.33,161.06,161.04,115.28]
[1754233881622,6.2087,161.07,161.04,115.28]
[1754233881823,3.33,161.05,161.04,115.28]
[1754233884636,3.33,161.05,161.04,116.13]
[1754233884932,3.33,161.12,161.05,0.85]
[1754233885132,3.33,161.12,161.06,6.29559192]
[1754233885332,3.33,161.12,161.06,7.14559192]
[1754233885727,6.2077,161.1,161.06,7.14559192]
[1754233885928,3.33,161.08,161.06,7.14559192]
[1754233888236,3.33,161.07,161.06,7.14559192]
[1754233888832,3.33,161.12,161.04,115.28]
[1754233889136,3.33,161.1,161.04,115.28]
[1754233890542,6.2085,161.08,161.04,115.28]
[1754233890734,3.33,161.07,161.04,115.28]
[1754233890931,3.33,161.09,161.06,0.85]
[1754233891234,6.29559192,161.15,161.04,115.28]
[1754233891235,3.33,161.08,161.07,6.29559192]
[1754233891434,3.33,161.08,161.07,7.14559192]
[1754233891640,3.33,161.11,161.08,0.85]
[1754233891837,6.2067,161.12,161.08,0.85]
[1754233892037,3.33,161.09,161.07,6.29559192]
[1754233892237,3.33,161.09,161.07,7.14559192]
[1754233892434,3.33,161.08,161.07,7.14559192]
[1754233892942,3.33,161.1,161.07,13.35419192]
[1754233893142,3.33,161.09,161.07,7.14559192]
[1754233893439,6.29559192,161.17,161.07,7.14559192]
[1754233893637,3.33,161.16,161.08,0.85]
[1754233893837,3.33,161.16,161.09,7.14559192]
[1754233894038,3.33,161.12,161.09,7.14559192]
[1754233894238,3.33,161.11,161.09,7.14559192]
[1754233894832,3.33,161.1,161.09,7.14559192]
[1754233895441,3.33,161.1,161.09,6.29559192]
[1754233896540,6.29559192,161.18,161.09,7.14559192]
[1754233896742,3.33,161.17,161.09,7.14559192]
[1754233897842,6.2065,161.13,161.09,7.14559192]
[1754233898043,3.33,161.12,161.09,7.14559192]
[1754233898246,3.33,161.12,161.09,6.29559192]
[1754233898444,3.33,161.11,161.09,6.29559192]
[1754233901448,3.33,161.16,161.1,0.85]
[1754233901751,3.33,161.16,161.11,6.2069]
[1754233902052,3.33,161.15,161.11,7.0569]
[1754233902240,3.33,161.15,161.12,6.29559192]
[1754233904750,138.41565132,161.19,161.1,6.29559192]
[1754233904751,3.53,161.14,161.1,6.29559192]
[1754233904953,3.53,161.13,161.06,6.29559192]
[1754233906345,3.53,161.1,161.06,6.29559192]
[1754233906547,3.53,161.13,161.07,0.86]
[1754233906746,6.207,161.12,161.07,6.2083]
[1754233906944,6.207,161.12,161.08,0.86]
[1754233907141,3.53,161.1,161.08,7.15559192]
[1754233907539,3.53,161.16,161.09,0.86]
[1754233907755,3.53,161.24,161.16,0.86]
[1754233908055,6.2034,161.21,161.17,6.29559192]
[1754233908256,3.53,161.19,161.17,6.29559192]
[1754233908648,3.53,161.19,161.17,12.50029192]
[1754233908846,3.53,161.18,161.17,12.50029192]
[1754233909146,3.53,161.18,161.17,6.29559192]
[1754233911960,9.7343,161.18,161.17,6.29559192]
[1754233912158,3.53,161.18,161.17,6.29559192]
[1754233914567,3.53,161.18,161.13,6.29559192]
[1754233914765,9.7344,161.18,161.13,7.15559192]
[1754233915066,6.94226238,161.28,161.17,6.29559192]
[1754233915067,6.29559192,161.26,161.17,6.29559192]
[1754233915363,6.2038,161.2,161.17,6.29559192]
[1754233915563,3.53,161.19,161.17,6.29559192]
[1754233915759,6.2038,161.2,161.17,6.29559192]
[1754233916069,3.53,161.18,161.17,6.29559192]
[1754233917874,3.53,161.18,161.17,7.15559192]
[1754233918063,3.53,161.18,161.17,6.29559192]
[1754233919172,3.53,161.18,161.15,6.29559192]
[1754233919966,3.53,161.18,161.13,12.50179192]
[1754233920766,3.53,161.18,161.14,6.2057]
[1754233921271,6.2037,161.2,161.15,6.29559192]
[1754233921471,3.53,161.19,161.15,6.29559192]
[1754233921870,6.2044,161.18,161.15,6.29559192]
[1754233922169,3.53,161.17,161.15,6.29559192]
[1754233922572,3.53,161.17,161.13,6.29559192]
[1754233922765,3.53,161.17,161.11,6.29559192]
[1754233923067,6.2054,161.16,161.12,6.2066]
[1754233923365,3.53,161.25,161.13,6.29559192]
[1754233923566,3.53,161.21,161.13,6.29559192]
[1754233923768,6.29559192,161.22,161.13,6.29559192]
[1754233923769,3.53,161.16,161.13,6.29559192]
[1754233923967,3.53,161.16,161.11,0.86]
[1754233923968,3.53,161.16,161.09,6.29559192]
[1754233924167,3.53,161.16,161.08,116.04]
[1754233924168,9.82559192,161.16,161.08,116.04]
[1754233924372,6.29559192,161.14,161.04,0.86]
[1754233924567,3.53,161.13,161.05,0.86]
[1754233925270,3.53,161.1,161.06,7.0687]
[1754233925570,3.53,161.1,161.05,0.86]
[1754233926376,9.7375,161.1,161.06,0.86]
[1754233926672,3.53,161.08,161.06,0.86]
[1754233927065,6.2075,161.1,161.04,6.29559192]
[1754233927066,3.53,161.09,161.05,6.2093]
[1754233929675,3.53,161.09,161.01,0.86]
[1754233930272,6.2089,161.07,161.01,7.0705]
[1754233930474,3.53,161.06,161.01,6.2105]
[1754233930674,3.53,161.06,161.02,0.86]
[1754233930969,9.739,161.06,161.02,0.86]
[1754233931174,6.209,161.06,161.02,0.86]
[1754233931374,3.53,161.04,161.02,0.86]
[1754233932071,3.53,161.04,161.02,7.0703]
[1754233932772,3.53,161.04,161.02,0.86]
[1754233932980,3.53,161.05,161.01,6.2107]
[1754233933180,3.53,161.05,161.0,6.29559192]
[1754233933181,3.53,161.05,160.98,7.15559192]
[1754233933376,3.53,161.05,160.97,115.3]
[1754233933577,6.29559192,161.1,160.97,115.3]
[1754233933578,3.53,161.03,160.97,115.3]
[1754233934670,9.7402,161.03,160.98,6.212]
[1754233934870,3.37,161.02,160.98,6.212]
[1754233935975,9.5805,161.02,160.97,121.5123]
[1754233936170,3.37,161.01,160.97,116.17]
[1754233937281,3.37,161.01,160.97,122.3823]
[1754233937483,3.37,161.01,160.97,116.17]
[1754233938683,3.37,161.02,160.99,6.2115]
[1754233940984,3.37,161.02,160.98,0.87]
[1754233942184,3.37,161.02,160.98,7.082]
[1754233942379,6.29559192,161.06,160.98,0.87]
[1754233942380,3.37,161.01,160.98,0.87]
[1754233943778,3.37,161.13,160.99,0.87]
[1754233943984,3.37,161.07,160.99,0.87]
[1754233944286,6.2098,161.04,160.99,0.87]
[1754233944487,3.37,161.03,160.99,0.87]
[1754233944786,3.37,161.03,160.99,7.0813]
[1754233944973,6.2098,161.04,160.99,7.0813]
[1754233945178,3.37,161.03,160.99,7.0813]
[1754233945486,3.37,161.03,161.0,0.87]
[1754233946981,9.5801,161.03,160.98,12.50749192]
[1754233947180,3.37,161.02,160.99,0.87]
[1754233948588,3.37,161.01,160.99,6.2115]
[1754233948788,3.37,161.01,161.0,0.87]
[1754233950192,3.37,161.08,161.01,0.87]
[1754233950489,3.37,161.08,161.02,6.29559192]
[1754233950691,6.2086,161.07,161.02,7.15559192]
[1754233950892,3.37,161.08,161.02,7.15559192]
[1754233951392,3.37,161.06,161.02,0.86]
[1754233951787,3.37,161.05,160.98,0.86]
[1754233951988,3.37,161.05,160.98,7.15559192]
[1754233952696,6.2102,161.03,160.98,12.50749192]
[1754233952892,3.37,161.02,160.98,6.29559192]
[1754233953198,3.37,161.02,160.97,115.3]
[1754233953392,3.37,161.02,160.97,116.16]
[1754233953590,6.2108,161.02,160.97,116.16]
[1754233953791,3.37,161.01,160.97,116.16]
[1754233954192,3.37,161.02,160.98,6.29559192]
[1754233954394,3.37,161.08,161.01,0.86]
[1754233954591,3.37,161.08,161.03,6.29559192]
[1754233954791,3.37,161.08,161.04,0.86]
[1754233955193,3.37,161.08,161.03,6.29559192]
[1754233955386,9.5784,161.08,161.04,6.2096]
[1754233955687,3.37,161.07,161.03,7.15559192]
[1754233956291,6.29559192,161.09,161.01,0.86]
[1754233956591,6.29559192,161.09,161.0,6.29559192]
[1754233956592,3.37,161.08,161.0,6.29559192]
[1754233956791,3.37,161.08,160.99,7.0715]
[1754233956996,3.37,161.02,160.97,122.45559192]
[1754233958299,9.5808,161.02,160.98,6.2119]
[1754233958493,6.2108,161.02,160.98,0.86]
[1754233958700,3.37,161.0,160.98,0.86]
[1754233959000,3.37,161.0,160.99,0.86]
[1754233959199,3.37,161.0,160.97,121.59559192]
[1754233959399,3.37,161.0,160.98,0.86]
[1754233959702,3.37,161.0,160.98,7.0718]
[1754233961002,3.37,160.98,160.97,12.50789192]
[1754233961502,3.37,160.98,160.97,13.36789192]
[1754233962590,3.37,160.98,160.97,6.29559192]
[1754233963896,3.37,160.98,160.97,6.2124]
[1754233964897,6.29559192,161.05,160.97,0.86]
[1754233964898,3.2,161.01,160.97,0.86]
[1754233965202,3.2,161.01,160.98,0.86]
[1754233965402,3.2,161.01,160.98,7.072]
[1754233967301,6.2102,161.03,160.98,7.072]
[1754233967603,3.2,161.0,160.99,0.86]
[1754233968301,3.2,161.0,160.98,6.212]
[1754233968601,3.2,161.0,160.98,7.072]
[1754233968804,3.2,161.0,160.98,0.86]
[1754233969003,3.2,161.01,160.96,7.15559192]
[1754233969198,3.2,161.01,160.97,0.86]
[1754233969805,3.2,161.02,160.96,6.29559192]
[1754233970001,3.2,161.02,160.96,13.36829192]
[1754233970306,9.4105,161.02,160.96,13.36829192]
[1754233970605,3.2,161.01,160.97,0.86]
[1754233971706,3.2,161.01,160.97,7.0724]
[1754233972397,3.2,161.0,160.98,0.86]
[1754233972597,3.2,161.0,160.98,7.15559192]
[1754233973304,6.2101,161.03,160.98,6.29559192]
[1754233973503,3.2,161.02,160.98,6.29559192]
[1754233973807,9.4105,161.02,160.98,6.29559192]
[1754233974102,3.2,161.01,160.98,6.29559192]
[1754233976306,3.2,161.01,160.98,13.36759192]
[1754233976701,3.2,161.02,160.99,0.86]
[1754233976902,3.2,161.01,160.98,12.50759192]
[1754233977109,6.21,161.04,160.99,6.2116]
[1754233977401,3.2,161.03,161.0,0.86]
[1754233977914,3.2,161.03,161.0,7.0712]
[1754233978110,3.2,161.03,161.0,13.36679192]
[1754233978406,3.2,161.02,161.0,13.36679192]
[1754233978602,3.2,161.02,161.01,6.2109]
[1754233978901,3.2,161.02,161.0,7.15559192]
[1754233979210,3.2,161.02,161.0,13.36659192]
[1754233979411,3.2,161.02,161.0,12.50659192]
[1754233979612,3.2,161.02,161.01,0.86]
[1754233979804,3.2,161.07,161.0,6.29559192]
[1754233980010,3.2,161.07,161.03,7.15559192]
[1754233980906,3.2,161.07,161.03,13.36559192]
[1754233981399,3.2,161.1,161.03,6.29559192]
[1754233982011,3.2,161.09,161.05,6.29559192]
[1754233982216,417.1,161.14,161.0,6.29559192]
[1754233982217,3.2,161.08,161.07,6.29559192]
[1754233983206,3.2,161.14,161.07,6.29559192]
[1754233983398,3.2,161.14,161.09,6.29559192]
[1754233983603,3.2,161.14,161.09,7.15559192]
[1754233983811,3.2,161.14,161.1,0.86]
[1754233984308,3.2,161.13,161.09,6.29559192]
[1754233984901,3.2,161.13,161.09,7.15559192]
[1754233985305,3.2,161.12,161.09,6.29559192]
[1754233987312,9.4067,161.12,161.09,6.29559192]
[1754233987608,3.2,161.11,161.09,6.29559192]
[1754233989709,3.2,161.11,161.09,7.15559192]
[1754233991017,3.2,161.12,161.09,6.29559192]
[1754233991917,3.2,161.11,161.07,0.86]
[1754233992117,3.2,161.11,161.08,6.29559192]
[1754233992511,6.2071,161.11,161.02,120.41079981]
[1754233992709,3.2,161.1,161.08,6.29559192]
[1754233993924,3.45,161.11,161.08,7.13559192]
[1754233994122,3.45,161.11,161.1,7.13559192]
[1754233994608,144.78011557,161.2,161.1,7.13559192]
[1754233994814,3.45,161.18,161.1,7.13559192]
[1754233995616,3.45,161.18,161.1,6.29559192]
[1754233996018,6.2062,161.14,161.1,6.29559192]
[1754233996219,3.45,161.13,161.1,6.29559192]
[1754233996719,3.45,161.11,161.02,115.24]
[1754233996920,3.45,161.11,161.06,6.29559192]
[1754233998015,6.2079,161.09,161.06,6.29559192]
[1754233998326,3.45,161.07,161.06,7.13559192]
[1754233999025,3.45,161.07,161.06,6.29559192]
[1754234001223,3.45,161.09,161.07,0.84]
[1754234001526,3.45,161.08,161.07,0.84]
[1754234002122,3.45,161.08,161.06,12.50419192]
[1754234002425,3.45,161.07,161.06,6.29559192]
[1754234004129,3.45,161.07,161.05,12.50489192]
[1754234004319,6.29559192,161.12,161.04,6.29559192]
[1754234004521,259.21344511,161.2,161.02,121.53559192]
[1754234004522,6.29559192,161.1,161.02,121.53559192]
[1754234004829,3.45,161.09,161.02,115.24]
[1754234005126,3.45,161.05,161.02,115.24]
[1754234005721,9.6593,161.05,161.02,115.24]
[1754234006027,3.45,161.04,161.02,115.24]
[1754234006623,3.45,161.05,161.02,115.24]
[1754234006823,3.45,161.05,161.02,116.08]
[1754234007125,3.45,161.05,161.02,115.24]
[1754234007538,3.45,161.05,161.0,6.2111]
[1754234008030,3.45,161.02,160.98,0.84]
[1754234008432,3.45,161.02,160.99,6.2116]
[1754234008930,3.45,161.02,161.0,0.84]
[1754234009524,6.29559192,161.08,161.0,6.211]
[1754234009730,3.45,161.07,161.01,7.13559192]
[1754234010726,3.45,161.03,161.01,13.34629192]
[1754234011031,6.29559192,161.1,161.02,0.84]
[1754234011032,3.45,161.1,161.02,0.84]
[1754234011234,3.45,161.06,161.02,7.0502]
[1754234011733,3.45,161.05,161.02,0.84]
[1754234012130,3.45,161.05,161.01,7.13559192]
[1754234012729,6.2094,161.05,161.01,7.13559192]
[1754234013129,3.45,161.03,161.01,7.13559192]
[1754234013330,3.45,161.03,161.01,13.34629192]
[1754234013529,3.45,161.03,161.02,0.84]
[1754234013732,6.2091,161.06,161.02,0.84]
[1754234013934,3.45,161.04,161.02,0.84]
[1754234016240,3.45,161.04,161.02,7.0504]
[1754234016441,3.45,161.03,161.02,0.84]
[1754234016631,3.45,161.03,161.01,6.29559192]
[1754234016940,3.45,161.04,161.01,7.13559192]
[1754234017135,3.45,161.04,161.01,6.29559192]
[1754234018538,3.45,161.04,161.01,12.50639192]
[1754234018738,6.94226238,161.13,161.03,6.29559192]
[1754234018739,3.45,161.1,161.03,6.29559192]
[1754234018938,3.45,161.1,161.05,6.29559192]
[1754234019342,3.45,161.08,161.06,0.84]
[1754234019535,3.45,161.08,161.07,6.29559192]
[1754234024438,6.2071,161.11,161.07,6.29559192]
[1754234024745,3.4,161.1,161.09,6.29559192]
[1754234027037,3.4,161.16,161.07,6.29559192]
[1754234027440,3.4,161.16,161.07,7.15559192]
[1754234027744,6.2075,161.1,161.07,6.29559192]
[1754234028041,3.4,161.09,161.06,6.29559192]
[1754234028247,3.4,161.09,161.04,6.29559192]
[1754234029045,3.4,161.09,161.04,7.15559192]
[1754234029741,3.4,161.09,161.06,6.29559192]
[1754234031148,3.4,161.09,161.04,6.29559192]
[1754234032247,6.2082,161.08,161.04,6.29559192]
[1754234032449,3.4,161.07,161.04,6.29559192]
[1754234033547,3.4,161.06,161.04,6.29559192]
[1754234034749,3.4,161.05,161.04,6.29559192]
[1754234035137,3.4,161.06,161.02,121.35559192]
[1754234035443,3.4,161.06,161.02,122.21559192]
[1754234036844,9.609,161.06,161.02,121.35559192]
[1754234037141,3.4,161.05,161.02,121.35559192]
[1754234037545,3.4,161.04,161.02,121.35559192]
[1754234039049,6.2094,161.05,161.02,121.35559192]
[1754234039247,3.4,161.05,161.02,122.21559192]
[1754234039949,3.4,161.05,161.02,121.35559192]
[1754234041244,3.4,161.09,161.05,0.86]
[1754234041445,3.4,161.08,161.06,7.15559192]
[1754234041950,3.4,161.08,161.06,13.36419192]
[1754234042452,3.4,161.1,161.06,128.40419192]
[1754234042650,3.4,161.09,161.08,6.29559192]
[1754234043348,3.4,161.15,161.08,6.29559192]
[1754234043554,3.4,161.15,161.08,7.15559192]
[1754234044148,3.4,161.13,161.1,6.29559192]
[1754234044849,3.4,161.15,161.12,6.29559192]
[1754234045552,6.2048,161.17,161.12,7.15559192]
[1754234045752,3.4,161.14,161.12,7.15559192]
[1754234045952,3.4,161.13,161.12,7.15559192]
[1754234046246,3.4,161.13,161.12,6.29559192]
[1754234048857,3.4,161.13,161.11,6.29559192]
[1754234049155,3.4,161.12,161.11,6.29559192]
[1754234053950,13.2378543,161.21,161.11,12.50229192]
[1754234054156,3.31,161.13,161.11,13.36229192]
[1754234054355,3.31,161.12,161.11,13.36229192]
[1754234054550,3.31,161.12,161.11,6.29559192]
[1754234057957,6.2054,161.16,161.11,13.36259192]
[1754234058160,3.31,161.13,161.11,13.36259192]
[1754234059062,3.31,161.12,161.11,13.36259192]
[1754234059262,3.31,161.13,161.11,13.36259192]
[1754234059462,6.2054,161.16,161.11,13.36259192]
[1754234059658,3.31,161.12,161.11,13.36259192]
[1754234059859,3.31,161.12,161.11,6.29559192]
[1754234060165,3.31,161.12,161.08,6.29559192]
[1754234060670,3.31,161.12,161.08,7.15559192]
[1754234061071,3.31,161.12,161.1,12.50289192]
[1754234061272,3.31,161.12,161.06,114.96]
[1754234061570,3.31,161.12,161.09,6.29559192]
[1754234062267,3.31,161.12,161.09,12.50339192]
[1754234064974,3.31,161.12,161.09,13.36339192]
[1754234066378,3.31,161.12,161.1,6.2073]
[1754234066876,3.31,161.12,161.09,6.29559192]
[1754234067071,3.31,161.12,161.09,12.50329192]
[1754234067671,3.31,161.12,161.1,6.2073]
[1754234068580,3.31,161.14,161.1,6.2073]
[1754234069482,3.31,161.14,161.11,6.2069]
[1754234069784,3.31,161.14,161.09,7.15559192]
[1754234069971,3.31,161.14,161.09,6.29559192]
[1754234070173,3.31,161.14,161.11,6.207]
[1754234070469,3.31,161.17,161.11,6.29559192]
[1754234070674,3.31,161.17,161.11,7.15559192]
[1754234071373,3.31,161.15,161.11,7.15559192]
[1754234071982,3.31,161.15,161.12,6.2064]
[1754234072475,3.31,161.15,161.11,7.15559192]
[1754234072674,3.31,161.15,161.13,6.206]
[1754234072985,3.31,161.14,161.13,6.29559192]
[1754234073188,6.2042,161.19,161.14,6.2058]
[1754234073375,3.31,161.15,161.14,7.0658]
[1754234074383,3.31,161.15,161.13,12.50169192]
[1754234074578,3.31,161.14,161.13,13.36169192]
[1754234075982,3.31,161.17,161.14,6.2058]
[1754234076280,3.31,161.17,161.14,7.0658]
[1754234076981,3.31,161.16,161.13,12.50169192]
[1754234079985,3.31,161.16,161.14,6.2058]
[1754234080990,3.31,161.16,161.13,13.36169192]
[1754234083780,3.31,161.16,161.14,6.2058]
[1754234084583,134.41708848,161.22,161.15,6.29559192]
[1754234084892,3.49,161.22,161.2,6.29559192]
[1754234085081,3.49,161.21,161.2,6.29559192]
[1754234085788,3.49,161.23,161.21,6.2029]
[1754234086180,3.49,161.29,161.22,6.29559192]
[1754234086494,3.49,161.26,161.22,6.29559192]
[1754234087078,3.49,161.26,161.22,12.49829192]
[1754234087490,9.6912,161.27,161.22,12.49829192]
[1754234087792,3.49,161.27,161.23,6.2024]
[1754234087994,3.49,161.27,161.22,7.14559192]
[1754234088195,6.201,161.27,161.22,7.14559192]
[1754234088394,3.49,161.26,161.22,13.34809192]
[1754234088992,3.49,161.27,161.22,7.14559192]
[1754234089384,9.6909,161.27,161.23,6.2023]
[1754234089591,3.49,161.26,161.23,6.2023]
[1754234090294,3.49,161.27,161.24,6.29559192]
[1754234091383,9.6909,161.27,161.24,6.29559192]
[1754234091686,3.49,161.26,161.24,6.29559192]
[1754234092299,9.6912,161.26,161.24,6.29559192]
[1754234092502,3.49,161.25,161.22,13.34829192]
[1754234092797,3.49,161.24,161.22,13.34829192]
[1754234094192,6.2016,161.26,161.21,6.2031]
[1754234094497,3.49,161.25,161.21,13.34869192]
[1754234094998,3.49,161.25,161.22,6.2028]
[1754234095202,3.49,161.25,161.21,7.14559192]
[1754234095203,3.49,161.25,161.21,6.29559192]
[1754234095791,3.49,161.23,161.21,6.29559192]
[1754234096995,3.49,161.22,161.19,12.49949192]
[1754234097403,3.49,161.22,161.19,6.29559192]
[1754234098004,3.49,161.22,161.19,12.49949192]
[1754234098298,3.49,161.22,161.19,6.29559192]
[1754234098503,3.49,161.22,161.17,7.14559192]
[1754234098704,3.49,161.22,161.18,6.2043]
[1754234099097,3.49,161.21,161.18,7.0543]
[1754234099902,3.49,161.21,161.19,6.2039]
[1754234100103,3.49,161.22,161.19,7.14559192]
[1754234100299,3.49,161.29,161.21,13.34849192]
[1754234100903,3.49,161.29,161.22,6.2026]
[1754234101196,6.2006,161.28,161.22,0.85]
[1754234101397,6.29559192,161.31,161.23,6.29559192]
[1754234101599,3.49,161.27,161.24,6.2017]
[1754234101801,3.49,161.27,161.23,7.14559192]
[1754234103004,3.49,161.26,161.23,6.29559192]
[1754234103199,3.49,161.26,161.19,0.85]
[1754234103400,3.49,161.26,161.2,0.85]
[1754234103995,6.29559192,161.29,161.21,6.29559192]
[1754234104201,6.29559192,161.29,161.22,0.85]
[1754234104202,3.49,161.24,161.22,0.85]
[1754234104502,3.49,161.24,161.22,6.2028]
[1754234105098,3.49,161.24,161.23,6.2024]
[1754234105295,3.49,161.26,161.23,6.2024]
[1754234106203,6.2013,161.26,161.22,6.2027]
[1754234106507,3.49,161.25,161.19,7.14559192]
[1754234108204,417.0,161.32,161.19,6.2038]
[1754234108205,6.2025,161.23,161.19,6.2038]
[1754234108409,3.49,161.22,161.18,6.29559192]
[1754234108608,3.49,161.22,161.18,7.14559192]
[1754234109595,6.2021,161.24,161.19,7.0539]
[1754234109797,3.49,161.21,161.19,7.0539]
[1754234111506,6.2021,161.24,161.2,12.49919192]
[1754234111704,3.49,161.23,161.19,7.14559192]
[1754234112311,3.49,161.23,161.19,13.34929192]
[1754234113412,3.49,161.23,161.19,12.49929192]
[1754234113413,3.49,161.22,161.19,12.49929192]
[1754234114010,3.49,161.22,161.19,6.29559192]
[1754234114309,3.34,161.21,161.2,6.2034]
[1754234114904,3.34,161.24,161.2,0.86]
[1754234115221,3.34,161.28,161.21,6.29559192]
[1754234115513,3.34,161.25,161.21,12.49839192]
[1754234115915,3.34,161.25,161.21,13.35839192]
[1754234116111,6.2017,161.25,161.21,13.35839192]
[1754234116314,417.0,161.32,161.22,7.0627]
[1754234116315,3.34,161.28,161.22,7.0627]
[1754234116716,3.34,161.26,161.22,7.0627]
[1754234117515,3.34,161.26,161.23,6.2024]
[1754234117712,3.34,161.27,161.23,6.29559192]
[1754234117917,3.34,161.27,161.24,0.86]
[1754234118918,9.541,161.27,161.24,0.86]
[1754234119113,3.34,161.26,161.23,6.29559192]
[1754234120122,3.34,161.25,161.21,12.49869192]
[1754234120313,3.34,161.25,161.21,6.29559192]
[1754234120813,3.34,161.25,161.22,0.86]
[1754234121713,3.34,161.25,161.21,12.49859192]
[1754234121912,3.34,161.25,161.21,13.35859192]
[1754234122419,3.34,161.25,161.22,7.0628]
[1754234123820,3.34,161.25,161.22,0.86]
[1754234128220,3.34,161.3,161.23,7.15559192]
[1754234128421,3.34,161.3,161.26,0.86]
[1754234128820,6.94226238,161.32,161.26,0.86]
[1754234128821,3.34,161.31,161.27,6.29559192]
[1754234129126,3.34,161.31,161.27,7.15559192]
[1754234129829,3.34,161.31,161.28,0.86]
[1754234130515,3.34,161.3,161.29,6.29559192]
[1754234130720,3.34,161.3,161.29,7.15559192]
[1754234131018,3.34,161.3,161.29,6.29559192]
[1754234132226,6.94226238,161.33,161.3,0.86]
[1754234132421,6.94226238,161.33,161.24,114.66]
[1754234132618,3.34,161.31,161.3,7.15559192]
[1754234132819,6.94226238,161.33,161.3,6.29559192]
[1754234133018,10.28226238,161.33,161.32,7.15559192]
[1754234133526,3.34,161.32,161.3,7.15559192]
[1754234133928,6.94226238,161.33,161.3,7.15559192]
[1754234134128,3.34,161.31,161.3,7.15559192]
[1754234134332,3.34,161.32,161.3,7.15559192]
[1754234134627,3.34,161.32,161.31,0.86]
[1754234135024,3.34,161.36,161.31,0.86]
[1754234135219,3.34,161.37,161.3,6.29559192]
[1754234135427,3.34,161.37,161.32,7.15559192]
[1754234135735,9.5374,161.37,161.32,7.15559192]
[1754234136033,3.34,161.36,161.32,7.15559192]
[1754234137430,3.34,161.36,161.32,6.29559192]
[1754234137621,3.34,161.36,161.32,7.15559192]
[1754234138023,3.34,161.36,161.33,0.86]
[1754234140028,3.34,161.35,161.32,7.15559192]